bitfinex-derivatives/quotes_ETHF0:USTF0_20250709
["timestamp","ask_amount","ask_price","bid_price","bid_amount"]
[1752086123796,0.73605,2716.8,2716.7,8.74947]
[1752086124895,5.04763,2717.3,2716.7,8.0134]
[1752086125196,43.24117875,2717.4,2716.7,8.0134]
[1752086125197,0.736,2717.1,2717.0,0.73598]
[1752086125396,0.73582,2717.7,2717.6,0.73581]
[1752086125600,0.7358,2717.7,2717.6,2.30821]
[1752086125798,3.2078,2717.9,2717.4,3.2078]
[1752086125799,0.73586,2717.5,2717.4,6.38484875]
[1752086126000,0.73585,2717.6,2717.5,6.85885]
[1752086126301,0.73585,2717.6,2717.5,8.43125]
[1752086126496,0.73585,2717.6,2717.5,7.6954]
[1752086126705,0.73585,2717.6,2717.5,4.5846]
[1752086127802,0.73585,2717.6,2717.5,5.32046]
[1752086128102,0.73582,2717.7,2717.6,0.73583]
[1752086128303,0.73582,2717.7,2717.6,2.30823]
[1752086128599,0.7358,2717.7,2717.6,2.30822]
[1752086128800,0.7358,2717.7,2717.6,1.5724]
[1752086129001,0.73583,2717.6,2717.5,3.74805]
[1752086129199,0.73583,2717.6,2717.5,5.32045]
[1752086129396,0.73582,2717.7,2717.6,0.73582]
[1752086129596,0.73579,2717.8,2717.7,0.73578]
[1752086129800,41.53575,2717.9,2717.8,0.9504]
[1752086130003,0.73575,2717.9,2717.8,1.5724]
[1752086130197,1.38195,2717.9,2717.8,1.5724]
[1752086130397,0.7358,2717.7,2717.6,1.68621]
[1752086130604,0.7358,2717.7,2717.6,2.30821]
[1752086130796,0.7358,2717.7,2717.6,1.5724]
[1752086131202,1.382,2717.7,2717.6,1.5724]
[1752086131497,1.382,2717.7,2717.6,2.30823]
[1752086131693,0.7358,2717.7,2717.6,2.30823]
[1752086133194,1.83958,2717.6,2717.1,3.94376]
[1752086133400,0.73594,2717.2,2717.1,0.622]
[1752086133602,0.73591,2717.4,2717.3,0.7359]
[1752086133800,0.73591,2717.4,2717.3,1.3579]
[1752086134202,0.73591,2717.4,2717.3,1.5724]
[1752086134499,0.73588,2717.5,2717.4,0.73586]
[1752086134903,0.73588,2717.5,2717.4,1.35786]
[1752086135207,0.73581,2717.7,2717.6,0.73579]
[1752086135506,0.73581,2717.7,2717.6,2.30819]
[1752086136498,0.73581,2717.7,2717.6,2.30823]
[1752086136698,0.73583,2717.6,2717.5,3.72203]
[1752086136904,0.73583,2717.6,2717.5,4.34403]
[1752086137407,0.73581,2717.8,2717.7,0.73579]
[1752086137601,0.73581,2717.8,2717.5,0.73583]
[1752086137602,0.73586,2717.6,2717.5,0.73583]
[1752086137803,1.38206,2717.6,2717.5,1.35783]
[1752086138306,0.73586,2717.6,2717.5,2.34963]
[1752086138805,0.73591,2717.3,2717.2,1.72772]
[1752086139009,0.73594,2717.2,2717.1,3.94375]
[1752086139309,0.73594,2717.2,2717.1,5.54925]
[1752086139507,1.83981,2717.3,2716.9,0.9918]
[1752086139699,0.73607,2716.7,2716.6,7.79148]
[1752086139903,0.73607,2716.8,2716.7,0.73606]
[1752086140604,0.73604,2716.9,2716.8,0.73602]
[1752086141102,0.73614,2716.5,2716.4,0.73614]
[1752086141307,0.73614,2716.5,2716.4,1.34984]
[1752086141498,0.73615,2716.4,2716.3,0.9918]
[1752086141703,0.73615,2716.4,2716.3,1.6055]
[1752086141898,0.73615,2716.5,2716.3,2.34168]
[1752086142104,0.73615,2716.4,2716.3,1.72798]
[1752086142411,1.35007,2716.4,2716.3,0.73618]
[1752086142610,1.35007,2716.4,2716.3,1.34988]
[1752086142906,3.2078,2716.6,2716.3,1.34988]
[1752086142907,7.07032,2716.6,2716.4,0.73613]
[1752086143109,1.35003,2716.5,2716.4,0.73613]
[1752086143509,0.7361,2716.7,2716.3,0.6137]
[1752086143707,3.2078,2716.9,2716.8,0.73605]
[1752086143908,3.2078,2716.9,2716.8,1.34975]
[1752086144213,3.2078,2716.9,2716.8,2.34155]
[1752086144514,44.0078,2717.2,2717.1,0.73597]
[1752086144709,41.53594,2717.2,2717.1,0.6137]
[1752086144910,3.2352,2717.3,2716.9,0.9918]
[1752086145114,3.2352,2717.3,2717.2,0.73594]
[1752086145613,3.94368,2717.5,2717.4,0.73588]
[1752086146114,3.2352,2717.7,2717.6,0.73583]
[1752086147014,0.4978,2717.9,2717.5,2.44117875]
[1752086147210,0.4978,2717.9,2717.8,0.73578]
[1752086148604,0.4978,2717.9,2717.8,3.78878]
[1752086148809,41.53569,2718.2,2718.1,0.73569]
[1752086150016,0.73571,2718.1,2718.0,0.7357]
[1752086150216,0.6139,2718.1,2717.9,0.73574]
[1752086150412,3.7447,2718.1,2718.0,0.73572]
[1752086150914,4.48039,2718.1,2718.0,0.73572]
[1752086151416,3.7447,2718.1,2717.7,3.77448]
[1752086151610,0.73577,2717.9,2717.7,0.73578]
[1752086151805,0.6139,2717.8,2717.7,1.34948]
[1752086152012,3.6017,2717.8,2717.7,0.73578]
[1752086152217,4.33748,2717.8,2717.7,1.34948]
[1752086152814,4.33748,2717.8,2717.7,0.6137]
[1752086153215,4.33748,2717.8,2717.7,1.3495]
[1752086153513,4.33748,2717.8,2717.7,0.6137]
[1752086153912,4.33748,2717.8,2717.7,1.3495]
[1752086154219,3.6017,2717.8,2717.7,1.3495]
[1752086154713,6.5357,2717.8,2717.7,1.3495]
[1752086156021,3.2078,2718.0,2717.9,0.73575]
[1752086156214,3.8217,2718.0,2717.9,1.34945]
[1752086156721,3.8217,2718.0,2717.9,2.34125]
[1752086157419,3.2078,2718.0,2717.9,1.34945]
[1752086157615,3.2078,2718.0,2717.9,2.34125]
[1752086157818,3.94352,2718.0,2717.9,2.34125]
[1752086158012,4.55742,2718.0,2717.9,1.34945]
[1752086158216,3.2078,2718.0,2717.9,1.34945]
[1752086158420,43.9407,2718.2,2718.1,0.73569]
[1752086158618,3.1407,2718.2,2718.1,1.34939]
[1752086158818,3.1407,2718.2,2718.1,2.34119]
[1752086159420,40.8,2718.3,2718.2,0.73567]
[1752086159619,40.8,2718.3,2718.2,1.34937]
[1752086159924,41.53564,2718.3,2718.2,0.73567]
[1752086160219,40.8,2718.3,2718.2,1.34937]
[1752086160422,3.2078,2718.7,2718.4,1.83904]
[1752086160627,3.8217,2718.7,2718.6,1.34926]
[1752086160816,3.2078,2718.7,2718.6,1.34926]
[1752086161013,3.2078,2719.0,2718.9,0.73548]
[1752086161413,3.8217,2719.0,2718.9,1.34918]
[1752086161617,3.2078,2719.3,2718.9,1.6055]
[1752086161819,3.2078,2719.3,2719.2,0.7354]
[1752086162022,3.2078,2719.3,2719.2,1.7272]
[1752086162831,0.73522,2719.9,2719.8,0.73522]
[1752086163024,3.2078,2720.0,2719.9,0.73521]
[1752086163622,3.2078,2720.0,2719.9,1.72701]
[1752086163825,3.2078,2720.0,2719.7,3.17051552]
[1752086163826,3.94298,2720.0,2719.7,3.17051552]
[1752086164125,3.94291,2720.3,2720.2,0.73513]
[1752086164327,3.2078,2720.3,2720.2,0.73513]
[1752086164721,0.7351,2720.3,2720.2,0.73513]
[1752086165033,3.2078,2720.6,2720.2,0.9918]
[1752086165228,0.7351,2720.4,2720.2,1.72692]
[1752086165532,0.7351,2720.4,2719.8,3.2078]
[1752086165533,3.2078,2720.6,2719.9,0.9918]
[1752086165825,0.73519,2720.0,2719.8,0.73523]
[1752086166031,6.1858,2720.3,2719.8,0.9918]
[1752086166329,0.73514,2720.2,2720.0,0.73517]
[1752086166536,3.71311,2720.3,2720.1,1.72694]
[1752086166732,3.2078,2720.6,2720.5,0.73505]
[1752086167130,3.94282,2720.6,2720.5,1.72685]
[1752086167331,3.2078,2720.6,2720.2,1.72692]
[1752086167531,0.7351,2720.3,2720.2,0.9918]
[1752086167934,0.73515,2720.1,2720.0,3.94297]
[1752086168126,5.64897875,2720.3,2719.7,0.00551552]
[1752086168330,0.73523,2719.8,2719.7,0.00551552]
[1752086169924,9.3099,2720.0,2719.7,0.00551552]
[1752086170231,5.04556,2720.3,2719.7,0.74076552]
[1752086170430,0.73523,2719.8,2719.7,0.00551552]
[1752086171031,3.17640875,2719.8,2719.7,0.00551552]
[1752086171229,0.73545,2719.0,2718.9,3.2078]
[1752086171434,0.73544,2719.1,2718.9,3.2078]
[1752086171635,40.8,2719.2,2719.1,0.73541]
[1752086173129,40.8,2719.2,2719.1,1.66041]
[1752086173739,0.73534,2719.4,2719.3,0.73537]
[1752086174139,40.8,2719.4,2719.3,0.73537]
[1752086175338,3.1642,2719.5,2719.4,0.73534]
[1752086176338,3.1642,2719.5,2719.2,3.2078]
[1752086176339,0.73537,2719.3,2719.2,3.2078]
[1752086176534,43.73737875,2719.3,2718.9,3.2078]
[1752086176836,43.73737875,2719.3,2718.7,3.1343]
[1752086176837,0.73548,2718.9,2718.8,0.73549]
[1752086177039,0.73548,2718.9,2718.8,0.7355]
[1752086177241,3.0145,2718.9,2718.8,0.7355]
[1752086177540,3.079,2719.1,2719.0,0.73545]
[1752086178737,44.74317,2719.3,2719.2,0.7354]
[1752086178937,0.73542,2719.2,2719.1,0.73541]
[1752086179138,0.73545,2719.0,2718.9,3.94327]
[1752086179341,0.73549,2718.9,2718.8,0.73549]
[1752086179545,0.73552,2718.8,2718.7,0.73552]
[1752086179743,5.43047875,2718.9,2718.3,3.2078]
[1752086179943,6.0683,2718.7,2718.3,3.2078]
[1752086180143,6.0683,2718.7,2718.5,0.73557]
[1752086180144,0.73558,2718.6,2718.5,0.73557]
[1752086180343,3.81455,2718.7,2718.6,0.73556]
[1752086180745,3.079,2718.7,2718.3,3.2078]
[1752086180945,0.73559,2718.5,2718.4,0.73559]
[1752086181746,3.079,2718.7,2718.4,0.73559]
[1752086181747,0.73558,2718.6,2718.4,0.73559]
[1752086181947,3.079,2718.7,2718.3,3.2078]
[1752086182150,0.73564,2718.4,2718.0,57.1118]
[1752086182344,0.73565,2718.3,2718.2,0.73565]
[1752086182546,4.91091,2718.6,2718.0,57.1118]
[1752086182547,0.73563,2718.4,2718.3,0.73563]
[1752086182847,0.00551552,2718.5,2718.3,0.925]
[1752086183447,0.74111552,2718.5,2718.4,0.73559]
[1752086183650,0.73561,2718.4,2718.3,1.66063]
[1752086183946,1.84449552,2718.5,2718.0,53.904]
[1752086184253,0.73569,2718.2,2718.1,0.73568]
[1752086185048,0.73569,2718.2,2717.8,4.90022]
[1752086185049,3.072,2718.3,2717.7,5.9723]
[1752086185254,3.072,2718.3,2717.9,0.73571]
[1752086185255,0.73574,2718.0,2717.9,0.73571]
[1752086185648,0.73577,2717.9,2717.8,0.73576]
[1752086185848,0.73579,2717.8,2717.7,0.73578]
[1752086186458,0.73577,2717.9,2717.8,0.73575]
[1752086187344,0.73581,2717.8,2717.7,0.73579]
[1752086187541,1.36831,2717.8,2717.7,1.34719]
[1752086187743,1.36831,2717.8,2717.7,0.73579]
[1752086187946,0.6325,2717.8,2717.7,1.34719]
[1752086188148,3.94343,2718.4,2717.8,1.83945]
[1752086188349,4.57593,2718.4,2718.3,1.34704]
[1752086188748,44.0078,2718.4,2718.3,0.73564]
[1752086189143,44.74341,2718.4,2718.3,0.73564]
[1752086190650,44.0078,2718.4,2718.3,1.66064]
[1752086191056,44.74341,2718.4,2718.3,1.66064]
[1752086191355,0.73564,2718.3,2718.2,0.73565]
[1752086191746,40.8,2718.4,2718.3,0.73564]
[1752086191747,41.53563,2718.4,2718.3,0.73564]
[1752086192655,41.53563,2718.4,2718.3,1.34704]
[1752086193257,41.53563,2718.4,2718.3,0.6114]
[1752086193451,40.8,2718.4,2718.1,0.73567]
[1752086193649,0.6325,2718.3,2718.1,0.73567]
[1752086193954,40.8,2718.4,2718.3,0.73564]
[1752086194152,0.00551552,2718.5,2718.4,0.73561]
[1752086194345,0.00551552,2718.5,2718.4,4.86841]
[1752086194752,0.00551552,2718.5,2718.4,8.00311]
[1752086195161,0.00551552,2718.5,2718.4,13.00311]
[1752086196254,0.00551552,2718.5,2718.4,15.44428875]
[1752086197859,0.00551552,2718.5,2718.4,16.05568875]
[1752086198451,0.00551552,2718.5,2718.4,8.61451]
[1752086198952,0.00551552,2718.5,2718.4,5.47981]
[1752086199561,0.63871552,2718.5,2718.4,4.55481]
[1752086199860,0.00551552,2718.5,2718.4,3.94341]
[1752086200662,3.20021552,2718.5,2718.4,3.94341]
[1752086201855,0.00551552,2718.5,2718.4,3.94341]
[1752086202055,0.00551552,2718.5,2718.4,4.88961]
[1752086202764,0.00551552,2718.5,2718.4,5.50641]
[1752086203160,5.52e-06,2718.5,2718.4,60.60458875]
[1752086204063,5.52e-06,2718.5,2718.4,63.54818875]
[1752086204259,5.52e-06,2718.5,2718.4,68.54818875]
[1752086204460,5.52e-06,2718.5,2718.4,63.54818875]
[1752086209660,0.63320552,2718.5,2718.4,3.94341]
[1752086210063,0.63320552,2718.5,2718.4,4.56021]
[1752086210466,5.52e-06,2718.5,2718.4,5.50641]
[1752086213761,0.63320552,2718.5,2718.4,3.94341]
[1752086213967,1.36879552,2718.5,2718.4,3.94341]
[1752086214862,3.61780552,2718.5,2718.4,3.94341]
[1752086215167,3.61780552,2718.5,2718.4,4.56021]
[1752086217071,5.52e-06,2718.5,2718.4,5.50641]
[1752086217468,0.63320552,2718.5,2718.4,4.56021]
[1752086218270,3.79470552,2718.5,2718.4,4.56021]
[1752086218577,4.53029552,2718.5,2718.4,3.94341]
[1752086219268,3.79470552,2718.5,2718.2,0.00551552]
[1752086219473,0.73564,2718.4,2718.3,0.73562]
[1752086219672,4.54734,2718.4,2718.3,0.73562]
[1752086221973,3.8117,2718.4,2718.3,0.73562]
[1752086222178,4.54731,2718.4,2718.3,0.73562]
[1752086222974,3.8117,2718.4,2718.3,0.73562]
[1752086223270,4.54731,2718.4,2718.3,0.73562]
[1752086223469,3.8117,2718.4,2718.3,0.73562]
[1752086223773,3.8117,2718.4,2718.3,1.35242]
[1752086224969,4.54731,2718.4,2718.3,1.35242]
[1752086225175,4.54731,2718.4,2718.3,0.6168]
[1752086225571,0.73564,2718.3,2718.2,0.00551552]
[1752086225777,0.73564,2718.3,2718.2,0.74118552]
[1752086225778,3.70744,2718.3,2718.2,0.74118552]
[1752086226279,3.70744,2718.3,2718.2,0.00551552]
[1752086227686,3.70744,2718.3,2718.2,0.74118552]
[1752086227877,3.70744,2718.3,2718.2,0.00551552]
[1752086229480,44.50744,2718.3,2718.2,0.00551552]
[1752086231383,44.50744,2718.3,2718.2,1.38738552]
[1752086231581,44.50744,2718.3,2718.2,0.00551552]
[1752086231783,44.50744,2718.3,2718.2,0.74118552]
[1752086232184,44.50744,2718.3,2718.2,1.38738552]
[1752086232483,44.50744,2718.3,2718.2,0.65171552]
[1752086232785,44.50744,2718.3,2718.2,0.00551552]
[1752086233180,41.53564,2718.3,2718.2,0.65171552]
[1752086233981,40.8,2718.3,2718.2,1.38738552]
[1752086234483,41.53564,2718.3,2718.2,1.38738552]
[1752086235177,40.8,2718.3,2718.2,1.38738552]
[1752086235578,41.53564,2718.3,2718.2,1.38738552]
[1752086235780,40.8,2718.3,2718.2,1.38738552]
[1752086236183,0.73562,2718.4,2718.3,0.73564]
[1752086236382,1.38832,2718.4,2718.3,1.68984]
[1752086236582,0.73562,2718.4,2718.3,1.68984]
[1752086236784,3.24280552,2718.5,2718.4,0.73561]
[1752086237085,0.73561,2718.4,2718.3,1.68984]
[1752086238087,0.73561,2718.4,2718.3,2.33604]
[1752086238286,0.77059552,2718.5,2718.4,0.73561]
[1752086238487,0.77059552,2718.5,2718.4,2.33601]
[1752086238488,0.03500552,2718.5,2718.4,2.33601]
[1752086238692,0.03500552,2718.5,2718.4,0.73561]
[1752086238886,0.03500552,2718.5,2718.4,2.33601]
[1752086241892,0.03500552,2718.5,2718.4,5.54381]
[1752086244494,0.68770552,2718.5,2718.4,5.54381]
[1752086244793,0.68770552,2718.5,2718.4,4.58961]
[1752086246195,0.03500552,2718.5,2718.4,3.94341]
[1752086246399,1.42329552,2718.5,2718.4,4.58961]
[1752086246598,4.53459552,2718.5,2718.4,4.58961]
[1752086246996,3.79900552,2718.5,2718.4,1.38181]
[1752086247298,4.53459552,2718.5,2718.4,1.38181]
[1752086250707,0.73564,2718.4,2718.3,0.73562]
[1752086250907,0.73564,2718.3,2718.2,0.74115552]
[1752086251108,0.73564,2718.3,2718.2,1.38735552]
[1752086251109,1.38834,2718.3,2718.2,1.38735552]
[1752086252905,1.38834,2718.3,2718.2,0.65171552]
[1752086253108,1.38834,2718.3,2718.2,0.00551552]
[1752086253715,1.38834,2718.3,2718.2,0.65171552]
[1752086254010,1.38834,2718.3,2718.2,0.00551552]
[1752086254011,2.58912122,2718.3,2718.2,0.00551552]
[1752086254212,5.81152122,2718.3,2718.2,0.00551552]
[1752086254606,4.61074,2718.3,2718.2,0.00551552]
[1752086254909,5.81152122,2718.3,2718.2,0.00551552]
[1752086256002,5.81152122,2718.3,2718.2,1.38736552]
[1752086256003,1.38834,2718.3,2718.2,1.38736552]
[1752086256201,0.6527,2718.3,2718.2,1.38736552]
[1752086256404,6.35410552,2718.5,2718.4,0.73561]
[1752086256609,7.74239552,2718.5,2718.4,1.38181]
[1752086257800,7.74239552,2718.5,2718.4,0.73561]
[1752086258006,8.20758674,2718.5,2718.2,0.00551552]
[1752086258207,8.20758674,2718.5,2718.3,0.73562]
[1752086258208,0.73563,2718.4,2718.3,0.73562]
[1752086258508,7.08971552,2718.5,2718.4,0.73561]
[1752086258708,7.74241552,2718.5,2718.4,1.38181]
[1752086259209,7.74241552,2718.5,2718.4,1.35621]
[1752086259411,7.74241552,2718.5,2718.4,0.73561]
[1752086259905,4.53461552,2718.5,2718.4,1.35621]
[1752086260111,3.79900552,2718.5,2718.4,1.35621]
[1752086260306,3.76630552,2718.5,2718.4,2.35241]
[1752086260507,0.03500552,2718.5,2718.4,2.35241]
[1752086261014,0.03500552,2718.5,2718.4,8.70371]
[1752086263813,6.2983,2719.1,2719.0,0.73545]
[1752086264112,6.9183,2719.1,2719.0,1.35605]
[1752086264313,6.9183,2719.1,2719.0,0.73545]
[1752086264514,6.9183,2719.1,2719.0,1.35605]
[1752086264711,6.9183,2719.1,2719.0,0.73545]
[1752086265009,6.9183,2719.1,2719.0,1.35605]
[1752086265606,6.2983,2719.1,2719.0,2.35225]
[1752086265813,6.9183,2719.1,2719.0,2.35225]
[1752086266611,3.0905,2719.1,2719.0,2.35225]
[1752086266812,3.7105,2719.1,2719.0,2.35225]
[1752086267312,3.7105,2719.1,2719.0,1.35605]
[1752086268811,3.0905,2719.1,2719.0,2.35225]
[1752086269515,3.7105,2719.1,2719.0,2.35225]
[1752086272019,3.7105,2719.1,2719.0,1.35605]
[1752086274121,3.82592,2719.1,2719.0,1.35605]
[1752086274322,3.7105,2719.1,2719.0,1.35605]
[1752086274522,4.44592,2719.1,2719.0,1.35605]
[1752086275117,5.64670122,2719.1,2719.0,1.35605]
[1752086276524,4.91128122,2719.1,2719.0,1.35605]
[1752086276823,5.64670122,2719.1,2719.0,0.73545]
[1752086277318,4.91128122,2719.1,2719.0,1.35605]
[1752086277515,4.91128122,2719.1,2719.0,0.73545]
[1752086277721,3.7105,2719.1,2719.0,1.35605]
[1752086278418,4.44592,2719.1,2719.0,1.35605]
[1752086278620,3.7105,2719.1,2719.0,1.35605]
[1752086280619,3.0905,2719.1,2719.0,2.35225]
[1752086280819,3.2078,2719.7,2719.1,1.83853]
[1752086281018,3.94309,2719.7,2719.6,0.73529]
[1752086281226,3.8278,2719.7,2719.6,0.73529]
[1752086281523,3.2078,2719.7,2719.6,2.35209]
[1752086281715,3.8278,2719.7,2719.6,2.35209]
[1752086283024,0.62,2719.7,2719.6,1.35589]
[1752086283222,0.62,2719.7,2719.6,0.73529]
[1752086283418,0.62,2719.7,2718.7,2.10483639]
[1752086283419,0.73542,2719.2,2719.0,3.2078]
[1752086283620,2.55618122,2719.2,2719.0,3.2078]
[1752086283814,3.1412,2719.1,2719.0,3.94325]
[1752086284021,3.7612,2719.1,2719.0,3.94325]
[1752086284226,4.49662,2719.1,2719.0,4.56385]
[1752086284719,6.7055,2719.1,2719.0,3.94325]
[1752086284915,7.44092,2719.1,2719.0,4.56385]
[1752086285325,6.7055,2719.1,2719.0,4.56385]
[1752086286025,7.44092,2719.1,2719.0,1.35605]
[1752086286324,7.44092,2719.1,2718.7,8.98462]
[1752086286325,0.7356,2718.5,2718.4,0.73559]
[1752086286523,2.55638122,2718.5,2718.4,0.73559]
[1752086286722,43.35638122,2718.5,2718.4,0.73559]
[1752086286921,43.35638122,2718.5,2718.3,0.73563]
[1752086286922,0.73562,2718.4,2718.3,0.73563]
[1752086287118,3.8457,2718.4,2718.3,1.35623]
[1752086287521,4.58131,2718.4,2718.3,1.35623]
[1752086287828,5.78211122,2718.4,2718.3,0.73564]
[1752086288028,7.65903,2718.4,2718.3,1.35624]
[1752086289629,0.73564,2718.3,2718.2,0.00551552]
[1752086289826,4.62054,2718.3,2718.2,0.00551552]
[1752086290323,5.11714,2718.3,2718.2,0.00551552]
[1752086290522,1.83924,2718.2,2717.5,3.2078]
[1752086290725,0.73587,2717.5,2717.4,0.73588]
[1752086290930,0.6713,2717.5,2717.1,3.2078]
[1752086291127,7.62428122,2717.4,2717.3,0.73591]
[1752086291328,3.2099,2717.4,2717.3,1.36331]
[1752086291528,3.2099,2717.4,2717.3,2.29871]
[1752086292232,26.8848,2717.7,2717.6,0.73583]
[1752086292429,30.766,2717.7,2717.6,0.73583]
[1752086292631,30.0302,2717.7,2717.6,1.36323]
[1752086292825,3.2078,2718.1,2717.6,1.5628]
[1752086293030,3.2078,2718.1,2718.0,0.73571]
[1752086293231,3.8791,2718.1,2718.0,1.36311]
[1752086294033,3.8791,2718.1,2717.7,5.85519]
[1752086294228,7.69689,2718.1,2718.0,0.73572]
[1752086294423,0.73577,2717.9,2717.8,0.73576]
[1752086294624,1.83961,2717.6,2716.9,3.2078]
[1752086294829,3.18251234,2717.2,2717.0,0.73598]
[1752086295034,2.9467,2717.1,2717.0,1.36338]
[1752086295228,40.8,2717.3,2717.2,0.73592]
[1752086295524,41.4713,2717.3,2716.9,3.2078]
[1752086295730,0.73598,2717.1,2717.0,0.73598]
[1752086295932,1.40728,2717.1,2717.0,1.36338]
[1752086296134,0.6713,2717.1,2717.0,1.36338]
[1752086296333,1.40726,2717.1,2717.0,1.36338]
[1752086296733,0.73599,2717.0,2716.9,3.9438]
[1752086296926,0.73596,2717.2,2717.1,0.73596]
[1752086297131,3.7048,2717.2,2716.9,3.2078]
[1752086297334,0.73599,2717.0,2716.9,3.2078]
[1752086297535,1.40729,2717.0,2716.9,3.2078]
[1752086298340,3.0335,2717.2,2716.9,3.8352]
[1752086298539,41.53593,2717.3,2717.2,0.73594]
[1752086298839,0.73599,2717.1,2717.0,0.73598]
[1752086299034,1.40729,2717.1,2717.0,0.73598]
[1752086299239,0.73599,2717.0,2716.9,3.9438]
[1752086299437,1.40729,2717.0,2716.9,4.5712]
[1752086299836,0.6713,2717.0,2716.9,4.5712]
[1752086300133,40.8,2717.3,2717.1,0.73594]
[1752086300134,0.73596,2717.2,2717.1,0.73594]
[1752086300334,41.53592,2717.3,2717.2,0.73594]
[1752086300533,0.73596,2717.2,2717.1,0.73595]
[1752086300734,1.40726,2717.2,2717.1,1.36335]
[1752086300934,0.73596,2717.2,2717.1,1.36335]
[1752086301334,41.53593,2717.3,2717.2,0.73594]
[1752086301639,2.9467,2717.4,2717.3,0.73591]
[1752086301837,2.9467,2717.4,2717.3,1.36331]
[1752086302040,2.9467,2717.4,2717.3,2.29871]
[1752086302440,3.618,2717.4,2717.3,1.36331]
[1752086302636,4.35388,2717.4,2717.3,0.73591]
[1752086302836,4.35388,2717.4,2717.3,1.36331]
[1752086303033,2.9467,2717.4,2717.3,1.36331]
[1752086303235,3.618,2717.4,2717.3,2.29871]
[1752086303440,2.9467,2717.4,2717.3,2.29871]
[1752086304142,40.8,2717.5,2717.4,0.73588]
[1752086304341,40.8,2717.5,2717.4,1.36328]
[1752086304535,41.53586,2717.5,2717.4,1.36328]
[1752086305843,0.73588,2717.4,2717.3,0.73589]
[1752086306444,26.8053,2717.4,2716.9,3.2078]
[1752086306641,0.73599,2717.0,2716.9,3.94379]
[1752086306840,1.40729,2717.0,2716.9,3.94379]
[1752086307040,1.40729,2717.0,2716.9,4.57119]
[1752086307240,1.40729,2717.0,2716.9,3.94379]
[1752086307740,0.6713,2717.0,2716.9,4.57119]
[1752086308248,1.40729,2717.0,2716.9,4.57119]
[1752086309441,0.6713,2717.0,2716.9,5.50659]
[1752086309643,0.73592,2717.3,2717.1,0.73596]
[1752086309847,0.73582,2717.7,2717.2,2.29874]
[1752086310048,2.997,2717.7,2717.6,0.73582]
[1752086310248,3.6683,2717.7,2717.6,1.36322]
[1752086310943,3.2078,2717.9,2717.8,0.73577]
[1752086311142,3.2078,2717.9,2717.8,2.29857]
[1752086312639,3.2078,2717.9,2717.6,0.73581]
[1752086312640,0.73583,2717.7,2717.6,0.73581]
[1752086312847,0.73585,2717.6,2717.5,0.73583]
[1752086313148,0.73588,2717.4,2717.3,0.73591]
[1752086313350,1.40718,2717.4,2717.3,1.36331]
[1752086313546,0.00551552,2718.5,2717.3,1.5628]
[1752086313752,3.2078,2718.3,2718.2,0.73567]
[1752086313952,0.00551552,2718.5,2718.4,0.73561]
[1752086314251,0.00551552,2718.5,2718.4,2.29841]
[1752086314846,0.67681552,2718.5,2718.4,1.36301]
[1752086315141,0.74110552,2718.5,2718.4,1.36301]
[1752086315343,0.00551552,2718.5,2718.4,2.29841]
[1752086316447,0.74110552,2718.5,2718.4,2.29841]
[1752086316647,0.73562,2718.4,2718.1,3.2078]
[1752086316849,1.40692,2718.4,2718.3,1.36302]
[1752086317150,0.6713,2718.4,2718.3,1.36302]
[1752086317354,0.00551552,2718.5,2718.4,0.73561]
[1752086317548,0.73562,2718.4,2718.3,0.73562]
[1752086317745,0.73568,2718.2,2718.0,3.2321]
[1752086317945,0.6713,2718.2,2717.8,4.1227]
[1752086318151,3.2005,2718.1,2717.9,0.73574]
[1752086318348,0.6713,2718.0,2717.9,1.36314]
[1752086318546,0.6713,2718.0,2717.6,2.9811]
[1752086318746,0.73577,2717.9,2717.7,0.73578]
[1752086318955,0.73577,2717.9,2717.8,0.73577]
[1752086319255,0.73578,2717.8,2717.7,0.73578]
[1752086319453,1.37958,2717.8,2717.7,1.39008]
[1752086319647,0.6438,2717.8,2717.7,1.39008]
[1752086319854,0.73577,2717.9,2717.8,0.73577]
[1752086320060,0.73577,2717.9,2717.8,1.39007]
[1752086320252,1.37957,2717.9,2717.8,0.6543]
[1752086320554,1.37957,2717.9,2717.8,1.39007]
[1752086321148,1.37957,2717.9,2717.8,0.6543]
[1752086321456,0.73577,2717.8,2717.7,0.73578]
[1752086321756,0.6438,2717.8,2717.7,1.39008]
[1752086322455,1.37957,2717.8,2717.7,1.39008]
[1752086322754,0.6438,2717.8,2717.7,1.39008]
[1752086322948,3.73356,2717.9,2717.8,0.73577]
[1752086323146,4.37736,2717.9,2717.8,1.39007]
[1752086323548,4.37736,2717.9,2717.8,0.73577]
[1752086323752,4.37736,2717.9,2717.8,1.39007]
[1752086323954,4.37736,2717.9,2717.8,0.73577]
[1752086324246,4.37736,2717.9,2717.8,0.6543]
[1752086324749,4.37736,2717.9,2717.8,1.39007]
[1752086326345,4.37736,2717.9,2717.8,0.6543]
[1752086331456,1.37956,2717.9,2717.8,0.6543]
[1752086332061,0.73576,2717.9,2717.8,0.6543]
[1752086332263,1.37956,2717.9,2717.8,0.6543]
[1752086332563,1.37956,2717.9,2717.8,2.30497]
[1752086332763,0.73576,2717.9,2717.8,2.30497]
[1752086333162,3.94355,2718.0,2717.9,0.73575]
[1752086333362,3.94355,2718.0,2717.9,2.30495]
[1752086335964,4.58735,2718.0,2717.9,1.39005]
[1752086336765,3.8516,2718.0,2717.9,2.30495]
[1752086336965,4.58732,2718.0,2717.9,2.30495]
[1752086337269,3.8516,2718.0,2717.9,2.30495]
[1752086337571,0.6438,2718.0,2717.9,2.30495]
[1752086337872,1.37952,2718.0,2717.9,1.39005]